[Event "Baltic Zonal 2018"]
[Site "Tallinn"]
[Date "2018.05.16"]
[Round "4"]
[White "Chukavin, Kirill"]
[Black "Vicas, Marijus"]
[Result "1/2-1/2"]
[ECO "C88"]
[WhiteElo "2310"]
[BlackElo "2190"]
[Annotator "NA"]
[PlyCount "164"]
[EventDate "2018.??.??"]
[EventType "swiss"]
[EventCountry "EST"]
[SourceTitle "playchess.com"]
[Source "ChessBase"]
[SourceQuality "1"]
[TimeControl "5400+30"]

1. e4 {[%emt 0:00:00]} e5 {[%emt 0:00:35]} 2. Nf3 {[%emt 0:00:00]} Nc6 {[%emt 0:00:06]} 3. Bb5 {[%emt 0:00:00]} a6 {[%emt 0:00:49]} 4. Ba4 {[%emt 0:00:00]} Nf6 {[%emt 0:00:04]} 5. O-O {[%emt 0:00:02]} Be7 {[%emt 0:00:18]} 6. Re1 {[%emt 0:00:09]} b5 {[%emt 0:00:10]} 7. Bb3 {[%emt 0:00:07]} O-O {[%emt 0:00:09]} 8. a4 {[%emt 0:00:29]} Bb7 {[%emt 0:05:49]} 9. d3 {[%emt 0:00:17]} d6 {[%emt 0:17:34]} 10. c3 {[%emt 0:00:40]} Re8 {[%emt 0:00:31]} 11. Ng5 {[%emt 0:02:15]} Rf8 {[%emt 0:00:17]} 12. Nf3 {[%emt 0:00:06]} Re8 {[%emt 0:00:31]} 13. Nbd2 {[%emt 0:00:22] C88: Closed Ruy Lopez: Anti-Marshall Systems} Bf8 {[%emt 0:00:17]} 14. Nf1 {[%emt 0:03:19]} (14. Ba2 Qd7 15. Nf1 h6 16. Nh4 Ne7 17. h3 d5 18. Qf3 Kh7 19. Ng3 c5 20. exd5 Bxd5 21. Bxd5 Qxd5 22. axb5 axb5 23. Rxa8 Rxa8 24. Rxe5 Qxf3 25. Nxf3 {1-0 (59) Topalov,V (2801)-Ivanchuk,V (2729) Monte Carlo 2006}) 14... h6 {[%emt 0:04:59]} 15. Nh4 {[%emt 0:12:02]} d5 {[%emt 0:02:25]} 16. axb5 {[%emt 0:08:17]} axb5 {[%emt 0:00:44]} 17. Rxa8 {[%emt 0:00:30]} Bxa8 {[%emt 0:00:23]} 18. exd5 $146 {[%emt 0:05:49]} ({Predecessor:} 18. Qf3 b4 19. Nf5 Na5 20. Ba2 b3 21. Bb1 Re6 {1-0 (69) Sjugirov,S (2407)-Zherebukh,Y (2418) Sibenik 2007}) 18... Na5 {[%emt 0:06:13]} 19. Bc2 {[%emt 0:11:21]} Nxd5 {[%emt 0:01:42]} 20. Nf5 {[%emt 0:12:13]} Nf4 {[%emt 0:07:37]} 21. Bxf4 {[%emt 0:12:16]} exf4 {[%emt 0:03:57]} 22. Rxe8 {[%emt 0:01:44]} Qxe8 {[%emt 0:00:02]} 23. Qg4 {[%emt 0:05:28]} g6 {[%emt 0:10:24]} 24. b4 {[%emt 0:05:17]} Nc6 {[%emt 0:02:28]} 25. d4 {[%emt 0:04:44]} Qe6 {[%emt 0:11:52]} 26. h3 {[%emt 0:08:15]} Qf6 {[%emt 0:05:27]} 27. Be4 {[%emt 0:03:46]} Bb7 {[%emt 0:07:04]} 28. Nh4 {[%emt 0:03:31]} h5 {[%emt 0:04:28]} 29. Qf3 {[%emt 0:00:02]} Nxd4 {[%emt 0:00:06]} 30. cxd4 {[%emt 0:00:44]} Bxe4 {[%emt 0:00:04]} 31. Qxe4 {[%emt 0:00:07]} Qxh4 {[%emt 0:00:04]} 32. Nd2 {[%emt 0:01:09]} Bxb4 {[%emt 0:02:43]} 33. Qe8+ {[%emt 0:00:24]} Kg7 {[%emt 0:01:17]} 34. Nf3 {[%emt 0:00:01]} Qe7 {[%emt 0:00:15]} 35. Qxb5 {[%emt 0:00:02]} Bd6 {[%emt 0:00:11]} 36. Qd3 {[%emt 0:01:56]} Qe6 {[%emt 0:01:36]} 37. d5 {[%emt 0:00:34]} Qf6 {[%emt 0:00:04]} 38. Qe4 {[%emt 0:00:29]} Qa1+ {[%emt 0:00:41]} 39. Kh2 {[%emt 0:00:02]} Qb2 {[%emt 0:00:04]} 40. Kg1 {[%emt 0:00:52]} Bc5 {[%emt 0:00:05]} 41. Qe5+ {[%emt 0:00:27]} Qxe5 {[%emt 0:00:06]} 42. Nxe5 {[%emt 0:00:01]} f6 {[%emt 0:02:43]} 43. Nd3 {[%emt 0:00:47]} Bd6 {[%emt 0:00:05]} 44. Kf1 {[%emt 0:00:34]} Kf7 {[%emt 0:00:49]} 45. Ke2 {[%emt 0:00:07]} g5 {[%emt 0:02:12]} 46. Nb2 {[%emt 0:00:49]} (46. f3 $15) 46... Bc5 {[%emt 0:01:20]} 47. f3 {[%emt 0:00:29]} f5 {[%emt 0:00:27]} 48. Nc4 $2 {[%emt 0:00:45]} (48. Kd3 $11 {and White has nothing to worry.}) 48... Kf6 {[%emt 0:00:09]} 49. Kd3 {[%emt 0:00:15]} g4 {[%emt 0:01:12]} 50. Ke2 {[%emt 0:00:42]} Kg5 {[%emt 0:00:38]} 51. Kf1 {[%emt 0:00:09]} Kh4 {[%emt 0:00:09]} 52. hxg4 {[%emt 0:00:39]} fxg4 {[%emt 0:00:13]} 53. Nd2 {[%emt 0:00:31]} gxf3 {[%emt 0:00:55]} 54. gxf3 {[%emt 0:00:48]} (54. Nxf3+ $142 Kg4 55. Ke2) 54... Be3 {[%emt 0:01:27]} 55. Ne4 {[%emt 0:00:14]} Kh3 {[%emt 0:00:04]} 56. d6 {[%emt 0:00:30]} cxd6 {[%emt 0:00:25]} 57. Nxd6 {[%emt 0:00:09]} Kg3 {[%emt 0:00:27]} 58. Ke2 {[%emt 0:00:02]} (58. Nf5+ $19 Kxf3 59. Nh4+ Kg3 60. Ng2) 58... Bc5 $2 {[%emt 0:00:25]} (58... Kg2 {mates} 59. Nf5 Bf2 60. Nd6 h4 61. Ne4 Bb6 62. Nf6 h3 63. Ng4 Bd4 64. Kd3 Kxf3 65. Nh2+ Kg2 66. Ng4 Kg3 67. Nh6 Bh8 68. Nf5+ Kf3 69. Kc4 h2 70. Nh4+ Ke4 71. Ng2 f3 72. Nh4 f2 73. Kb4 f1=Q 74. Ng2 Qf8+ 75. Kb5 h1=Q 76. Kb6 Qb1+ 77. Kc7 Qe7+ 78. Kc8 Qbb7#) 59. Nf5+ {[%emt 0:01:35]} Kg2 {[%emt 0:00:10]} 60. Nh4+ {[%emt 0:00:35]} Kg1 {[%emt 0:01:44]} 61. Ng6 {[%emt 0:00:28]} Bd6 {[%emt 0:00:20]} 62. Ke1 {[%emt 0:00:25]} Kg2 {[%emt 0:00:06]} 63. Ke2 {[%emt 0:00:05]} Kg3 {[%emt 0:00:46]} 64. Kf1 {[%emt 0:00:14]} Bc5 {[%emt 0:01:00]} 65. Nxf4 {[%emt 0:00:10]} h4 {[%emt 0:00:04]} 66. Nh5+ {[%emt 0:01:04]} Kxf3 {[%emt 0:00:28] [#]} 67. Nf4 $1 {[%emt 0:00:05]} Kg3 {[%emt 0:00:37]} (67... Kxf4 $2 68. Kg2 $19) 68. Nh5+ {[%emt 0:00:34]} Kf3 {[%emt 0:00:29]} 69. Nf4 {[%emt 0:00:07]} Be3 {[%emt 0:00:43]} 70. Nh3 {[%emt 0:00:13]} Kg3 {[%emt 0:00:13] [#]} 71. Nf4 $1 {[%emt 0:00:35]} Ba7 {[%emt 0:00:26]} (71... Kxf4 $2 72. Kg2 $19) (71... Bxf4 $5 72. Kg1 $8 Kg4 $19) 72. Nh5+ {[%emt 0:00:11]} Kh2 $2 {[%emt 0:00:21]} (72... Kg4 $19 73. Kg2 Bd4 74. Nf6+ Bxf6) 73. Nf4 {[%emt 0:00:29]} Bb8 {[%emt 0:00:19]} 74. Nh3 {[%emt 0:00:58]} Ba7 $2 {[%emt 0:00:48]} (74... Kxh3 $19 75. Kg1 Bh2+ 76. Kh1 Kg4) 75. Nf4 {[%emt 0:00:28]} Kg3 {[%emt 0:00:38]} 76. Nh5+ {[%emt 0:00:14]} Kf3 {[%emt 0:00:38] [#]} 77. Nf4 $1 {[%emt 0:00:08]} Bf2 {[%emt 0:00:40]} 78. Ng2 {[%emt 0:00:52]} h3 {[%emt 0:00:16]} 79. Nh4+ {[%emt 0:00:05]} Ke3 {[%emt 0:00:23]} 80. Nf5+ $11 {[%emt 0:00:05]} Kf3 {[%emt 0:00:03]} 81. Nh4+ {[%emt 0:00:10]} Kg3 {[%emt 0:00:43]} 82. Nf5+ {[%emt 0:00:07]} Kf3 {[%emt 0:00:20]} 1/2-1/2

[Event "Baltic Zonal 2018"]
[Site "Tallinn"]
[Date "2018.05.16"]
[Round "4"]
[White "Vorobjov, Pavel"]
[Black "Beinoras, Mindaugas"]
[Result "1/2-1/2"]
[ECO "D27"]
[WhiteElo "2233"]
[BlackElo "2350"]
[Annotator "NA"]
[PlyCount "29"]
[EventDate "2018.??.??"]
[EventType "swiss"]
[EventCountry "EST"]
[SourceTitle "playchess.com"]
[Source "ChessBase"]
[SourceQuality "1"]
[TimeControl "5400+30"]

1. d4 {[%emt 0:00:00]} d5 {[%emt 0:00:14]} 2. c4 {[%emt 0:00:00]} dxc4 {[%emt 0:00:21]} 3. e3 {[%emt 0:00:33]} e6 {[%emt 0:02:41]} 4. Bxc4 {[%emt 0:00:55]} Nf6 {[%emt 0:00:34]} 5. Nf3 {[%emt 0:02:11]} c5 {[%emt 0:00:36]} 6. O-O {[%emt 0:01:33]} a6 {[%emt 0:00:12]} 7. a4 {[%emt 0:02:06]} Nc6 {[%emt 0:04:07]} 8. Nc3 {[%emt 0:00:42]} Be7 {[%emt 0:01:56]} 9. Qe2 {[%emt 0:08:33]} cxd4 {[%emt 0:00:55]} 10. Rd1 {[%emt 0:01:06]} O-O {[%emt 0:00:35]} 11. exd4 {[%emt 0:00:45]} Nb4 {[%emt 0:00:25]} 12. Bg5 {[%emt 0:07:48]} Nfd5 {[%emt 0:07:30]} 13. Nxd5 {[%emt 0:09:02]} Nxd5 {[%emt 0:01:30]} 14. Bxe7 {[%emt 0:02:16]} Nxe7 {[%emt 0:00:08]} 15. Ne5 {[%emt 0:08:06]} 1/2-1/2

[Event "Baltic Zonal 2018"]
[Site "Tallinn"]
[Date "2018.05.16"]
[Round "4"]
[White "Berzina, Ilze"]
[Black "Kalvaitis, Sigitas"]
[Result "1/2-1/2"]
[ECO "B41"]
[WhiteElo "2176"]
[BlackElo "2194"]
[Annotator "NA"]
[PlyCount "20"]
[EventDate "2018.??.??"]
[EventType "swiss"]
[EventCountry "EST"]
[SourceTitle "playchess.com"]
[Source "ChessBase"]
[SourceQuality "1"]
[TimeControl "5400+30"]

1. e4 c5 2. Nf3 e6 3. d4 cxd4 4. Nxd4 a6 5. c4 Nf6 6. Nc3 Qc7 7. Be2 Bb4 8. Qd3 Nc6 9. Nxc6 dxc6 10. O-O e5 1/2-1/2

[Event "Baltic Zonal 2018"]
[Site "Tallinn"]
[Date "2018.05.17"]
[Round "5"]
[White "Narva, Mai"]
[Black "Chukavin, Kirill"]
[Result "1-0"]
[ECO "B40"]
[WhiteElo "2322"]
[BlackElo "2310"]
[Annotator "NA"]
[PlyCount "89"]
[EventDate "2018.??.??"]
[EventType "swiss"]
[EventCountry "EST"]
[SourceTitle "playchess.com"]
[Source "ChessBase"]
[SourceQuality "1"]
[TimeControl "5400+30"]

{[%evp 9,56,12,16,14,26,16,22,-8,14,25,25,32767,32767,21,77,24,71,57,118,30,96,32767,89,32767,32767,229,271,323,298,311,484,497,434,189,198,191,196,108,179,210,32767,207,239,255,245,220,222,167,294]} 1. e4 {[%emt 0:00:00]} c5 {[%emt 0:00:16]} 2. Nf3 {[%emt 0:00:00]} e6 {[%emt 0:00:16]} 3. c3 {[%emt 0:00:00]} d5 {[%emt 0:00:21]} 4. e5 {[%emt 0:00:09]} d4 {[%emt 0:00:16]} 5. Bd3 {[%emt 0:00:24]} Nc6 {[%emt 0:00:51]} 6. O-O {[%emt 0:00:21]} Nge7 {[%emt 0:00:41]} 7. Re1 {[%emt 0:00:44]} Ng6 {[%emt 0:01:15]} 8. g3 {[%emt 0:00:50]} Qc7 {[%emt 0:07:44]} 9. Qe2 {[%emt 0:00:50] LiveBook: 6 Games} b6 {[%emt 0:22:36]} 10. Na3 {[%emt 0:02:27]} Bb7 {[%emt 0:03:14]} 11. h4 {[%emt 0:04:17]} Be7 {[%emt 0:05:41]} (11... Qd7 $11) 12. Be4 {[%emt 0:11:08]} O-O-O {[%emt 0:12:40]} 13. d3 {[%emt 0:06:02]} h6 {[%emt 0:09:33]} (13... a6 $14) 14. Bd2 {[%emt 0:04:27]} ({Better is} 14. Nb5 $16 Qd7 15. cxd4) 14... Kb8 {[%emt 0:01:44]} 15. Rac1 {[%emt 0:02:23]} Qd7 {[%emt 0:02:49]} ({Don't blunder} 15... Ngxe5 $2 16. Nxe5 Nxe5 17. Bxb7 $18) 16. Nc2 {[%emt 0:03:40]} Nf8 {[%emt 0:04:24]} 17. cxd4 {[%emt 0:05:52]} cxd4 {[%emt 0:02:07]} 18. b4 {[%emt 0:01:45]} a6 {[%emt 0:02:46]} 19. a4 {[%emt 0:02:40]} b5 {[%emt 0:02:22]} (19... Na7 $142 20. Ncxd4 g5 21. hxg5 hxg5 22. Bxg5 Bxg5) 20. axb5 {[%emt 0:02:35]} axb5 {[%emt 0:00:05]} 21. Na3 {[%emt 0:04:13]} (21. Ra1 $142) 21... Na7 {[%emt 0:01:56]} ({Don't go for} 21... Nxb4 $2 22. Bxb7 Qxb7 23. Rb1 $18) 22. Bxb7 {[%emt 0:02:21]} Qxb7 {[%emt 0:01:10] [#]} 23. Qe4 {[%emt 0:02:15]} (23. Nc2 $1 $18) 23... Rd5 {[%emt 0:05:15]} (23... Qd5 $16 24. Kg2 Ng6 25. Qxd5 Rxd5) 24. Nc2 {[%emt 0:05:27]} ({Don't do} 24. Nxd4 $6 Nd7 $16) 24... Nd7 {[%emt 0:02:27]} 25. Ncxd4 {[%emt 0:00:55]} Rd8 {[%emt 0:04:23]} 26. Rc2 {[%emt 0:07:38]} Nb6 {[%emt 0:03:36]} 27. Rec1 {[%emt 0:01:55]} R5d7 {[%emt 0:00:59]} 28. Qg4 {[%emt 0:06:02]} Bf8 $18 {[%emt 0:01:52]} (28... g5 $16 29. hxg5 hxg5) 29. h5 {[%emt 0:02:32]} Rc8 {[%emt 0:01:06]} 30. Rxc8+ {[%emt 0:02:09]} Nbxc8 {[%emt 0:00:02]} 31. Be3 {[%emt 0:01:09]} Nb6 {[%emt 0:01:00]} 32. Nb3 {[%emt 0:07:00]} Rxd3 {[%emt 0:00:11]} 33. Na5 {[%emt 0:01:17]} Qd5 {[%emt 0:00:11]} 34. Qf4 {[%emt 0:00:32]} Rd1+ {[%emt 0:01:08]} 35. Rxd1 {[%emt 0:00:20]} Qxd1+ {[%emt 0:00:01]} 36. Kg2 {[%emt 0:00:28]} Nd7 {[%emt 0:00:43]} 37. Nd4 {[%emt 0:02:00]} Bxb4 {[%emt 0:00:47]} 38. Nac6+ {[%emt 0:00:43]} Nxc6 {[%emt 0:00:02]} 39. Nxc6+ {[%emt 0:00:06]} Kc8 {[%emt 0:00:57]} 40. Nxb4 {[%emt 0:00:10]} Qxh5 {[%emt 0:00:12]} 41. Bd4 {[%emt 0:01:07]} Qf5 {[%emt 0:00:44]} 42. Qc1+ {[%emt 0:00:54]} Kd8 {[%emt 0:00:12]} 43. Qc6 {[%emt 0:00:25]} f6 {[%emt 0:00:48]} 44. Qb7 {[%emt 0:01:36]} Ke8 {[%emt 0:00:35]} 45. Qc8+ {[%emt 0:00:53]} 1-0

[Event "Baltic Zonal 2018"]
[Site "Tallinn"]
[Date "2018.05.17"]
[Round "5"]
[White "Vicas, Marijus"]
[Black "Berzina, Ilze"]
[Result "0-1"]
[ECO "B12"]
[WhiteElo "2190"]
[BlackElo "2176"]
[Annotator "NA"]
[PlyCount "72"]
[EventDate "2018.??.??"]
[EventType "swiss"]
[EventCountry "EST"]
[SourceTitle "playchess.com"]
[Source "ChessBase"]
[SourceQuality "1"]
[TimeControl "5400+30"]

1. e4 c6 2. d4 d5 3. e5 c5 4. dxc5 Nc6 5. a3 {B12: Caro-Kann: Advance Variation} Nxe5 6. Bb5+ (6. b4 Nf6 7. Bb2 Nc6 8. Nf3 g6 9. Nc3 d4 10. Nb5 e5 11. Qe2 Bg4 12. O-O-O Bh6+ {1-0 (48) Nepomniachtchi,I (2751)-Navara,D (2737) Saint Louis 2017}) 6... Nc6 7. b4 Nf6 8. Bb2 Bg4 9. Nf3 e6 10. O-O Be7 11. c4 O-O 12. Qb3 $146 ({Predecessor:} 12. Nbd2 Ne4 13. Nxe4 dxe4 14. Qxd8 Rfxd8 15. Bxc6 bxc6 {0-1 (57) Mamontova,A (2058)-Belenkaya,D (2294) St Petersburg 2018}) 12... Qc7 13. cxd5 Nxd5 14. Bxc6 bxc6 15. Ne5 Bf5 16. Nd2 a5 17. Ndc4 axb4 18. axb4 Rab8 19. Ra4 {[#]} Bxc5 $1 20. Qg3 Rxb4 21. Ra6 $2 (21. Rxb4 $17 {was necessary.} Bxb4 {[#]} 22. Nxc6 $1 {[%mdl 512]} Qxg3 23. hxg3) 21... f6 22. Rxc6 Qe7 23. Nd3 Rb3 ({Don't take} 23... Rxc4 24. Nxc5 Rxc5 25. Rxc5 $19) 24. Nxc5 Rxg3 25. hxg3 Nb4 26. Nxe6 Nxc6 27. Nxf8 Qxf8 28. Ba3 Qd8 29. Nd6 Bd7 30. Rd1 h5 31. Ne4 Qa5 $19 32. Bc1 Bf5 33. Nd6 Bc2 34. Rd2 Ne5 35. f3 Bd3 36. Kh2 Qc5 0-1

[Event "Baltic Zonal 2018"]
[Site "Tallinn"]
[Date "2018.05.18"]
[Round "7"]
[White "Beinoras, Mindaugas"]
[Black "Narva, Mai"]
[Result "1/2-1/2"]
[ECO "A29"]
[WhiteElo "2350"]
[BlackElo "2322"]
[Annotator "NA"]
[PlyCount "118"]
[EventDate "2018.??.??"]
[EventType "swiss"]
[EventCountry "EST"]
[SourceTitle "playchess.com"]
[Source "ChessBase"]
[SourceQuality "1"]
[TimeControl "5400+30"]

1. c4 {[%emt 0:00:07]} e5 {[%emt 0:00:15]} 2. Nc3 {[%emt 0:00:20]} Nf6 {[%emt 0:00:26]} 3. Nf3 {[%emt 0:00:23]} Nc6 {[%emt 0:00:16]} 4. g3 {[%emt 0:00:21]} Bb4 {[%emt 0:00:21]} 5. Bg2 {[%emt 0:00:42]} O-O {[%emt 0:00:26]} 6. O-O {[%emt 0:00:15]} Re8 {[%emt 0:01:37]} 7. d3 {[%emt 0:10:55]} h6 {[%emt 0:03:07]} 8. e4 {[%emt 0:06:28]} a5 {[%emt 0:11:04] A29: Englische Eröffnung (Vierspringer-Variante)} (8... d6 9. h3 a6 10. Be3 Bd7 11. Rc1 Rb8 12. a3 Bc5 13. d4 exd4 14. Nxd4 Ne5 15. Qe2 b5 16. cxb5 axb5 {1-0 (32) Petrosian,T (2649)-Mareco,S (2557) Albena 2013}) 9. h3 {[%emt 0:02:07]} Bf8 $146 {[%emt 0:04:27]} ({Vorgänger:} 9... Bxc3 10. bxc3 d6 11. Rb1 Nd7 12. Nh4 Nc5 13. Be3 a4 {0-1 (45) Doering,T (2197)-Hernandez Leon,A (2304) Tenerife 2015}) 10. Be3 {[%emt 0:03:32]} d6 {[%emt 0:01:22]} 11. d4 {[%emt 0:00:51]} exd4 {[%emt 0:01:48]} 12. Nxd4 {[%emt 0:04:03]} Ne5 {[%emt 0:01:07]} 13. b3 {[%emt 0:02:43]} c6 {[%emt 0:00:56]} 14. Qc2 {[%emt 0:01:11]} Ned7 {[%emt 0:01:54]} 15. Rad1 {[%emt 0:01:27]} Qc7 {[%emt 0:02:37]} 16. Nf5 {[%emt 0:09:35]} Nb8 {[%emt 0:04:41]} 17. Bf4 {[%emt 0:04:40]} Bxf5 {[%emt 0:01:15]} 18. exf5 {[%emt 0:00:07]} Nbd7 {[%emt 0:02:48]} 19. Rd2 {[%emt 0:01:07]} Nh5 {[%emt 0:07:04]} 20. Bxd6 {[%emt 0:23:19]} Bxd6 {[%emt 0:07:21]} 21. Rfd1 {[%emt 0:00:44]} Bc5 {[%emt 0:05:34]} 22. Rxd7 {[%emt 0:03:33]} Qxg3 {[%emt 0:00:36]} 23. Ne4 {[%emt 0:06:07]} Qe5 {[%emt 0:02:21]} 24. Qc3 {[%emt 0:03:01]} Qxf5 {[%emt 0:07:11]} 25. Qf3 {[%emt 0:01:08]} Qxf3 {[%emt 0:02:03]} 26. Bxf3 {[%emt 0:00:08]} Re5 {[%emt 0:01:03]} 27. Nxc5 {[%emt 0:02:28]} Rxc5 {[%emt 0:00:10]} 28. Rxb7 {[%emt 0:00:10]} Nf4 {[%emt 0:02:28]} 29. Kh2 {[%emt 0:00:29]} Ne6 {[%emt 0:05:47]} 30. h4 $16 {[%emt 0:01:18]} Rf5 {[%emt 0:07:18]} 31. Kg3 {[%emt 0:00:33]} Rf6 {[%emt 0:01:32]} 32. Rd2 {[%emt 0:04:30]} Rg6+ {[%emt 0:05:43]} 33. Kh3 {[%emt 0:00:52]} Rf6 {[%emt 0:00:33]} 34. Bh1 {[%emt 0:01:35]} a4 {[%emt 0:03:06]} 35. b4 {[%emt 0:01:11]} a3 {[%emt 0:02:30]} 36. Rb6 {[%emt 0:01:11]} Nd8 {[%emt 0:01:19]} 37. Be4 {[%emt 0:01:33]} Re6 {[%emt 0:01:43]} 38. Bf3 {[%emt 0:01:25]} Kf8 {[%emt 0:00:46]} 39. Rd7 {[%emt 0:00:53]} Rf6 {[%emt 0:01:08]} 40. Kg2 {[%emt 0:00:16]} Rc8 {[%emt 0:00:43]} 41. Ra7 {[%emt 0:00:51]} Rf4 {[%emt 0:01:12]} 42. c5 {[%emt 0:00:05]} Rxh4 {[%emt 0:00:40]} 43. Rxa3 {[%emt 0:00:05]} g5 {[%emt 0:00:51]} 44. Rd3 {[%emt 0:00:40]} Ne6 {[%emt 0:00:39]} 45. Rd7 {[%emt 0:00:35]} Nf4+ {[%emt 0:00:33]} 46. Kg1 {[%emt 0:02:43]} g4 {[%emt 0:00:31]} 47. Bxc6 {[%emt 0:00:27]} Re8 {[%emt 0:00:18]} 48. Rd1 {[%emt 0:00:18]} Re2 {[%emt 0:00:32]} 49. Rf1 {[%emt 0:00:30]} Rh5 {[%emt 0:00:38]} 50. Rb8+ {[%emt 0:00:24]} Kg7 {[%emt 0:00:09]} 51. Re8 {[%emt 0:00:05]} Rxa2 {[%emt 0:00:41]} 52. Re4 {[%emt 0:00:29]} Ne2+ {[%emt 0:00:25]} 53. Kg2 {[%emt 0:00:08]} f5 {[%emt 0:00:19]} 54. Re7+ {[%emt 0:01:12]} Kf6 {[%emt 0:00:11]} 55. Rf7+ {[%emt 0:00:21]} Kg6 {[%emt 0:00:24]} 56. Be8 {[%emt 0:01:02]} Nf4+ {[%emt 0:01:04]} 57. Kg1 {[%emt 0:00:29]} Ne2+ {[%emt 0:00:47]} 58. Kg2 {[%emt 0:00:05]} Nf4+ {[%emt 0:00:23]} 59. Kg1 {[%emt 0:00:05]} Ne2+ {[%emt 0:00:39]} 1/2-1/2

[Event "Baltic Zonal 2018"]
[Site "Tallinn"]
[Date "2018.05.18"]
[Round "7"]
[White "Chukavin, Kirill"]
[Black "Kalvaitis, Sigitas"]
[Result "1-0"]
[ECO "C18"]
[WhiteElo "2310"]
[BlackElo "2194"]
[Annotator "NA"]
[PlyCount "65"]
[EventDate "2018.??.??"]
[EventType "swiss"]
[EventCountry "EST"]
[SourceTitle "playchess.com"]
[Source "ChessBase"]
[SourceQuality "1"]
[TimeControl "5400+30"]

1. e4 {[%emt 0:00:00]} e6 {[%emt 0:00:38]} 2. d4 {[%emt 0:00:00]} d5 {[%emt 0:00:03]} 3. Nc3 {[%emt 0:00:00]} Bb4 {[%emt 0:02:37]} 4. e5 {[%emt 0:00:04]} Ne7 {[%emt 0:00:08]} 5. a3 {[%emt 0:00:19]} Bxc3+ {[%emt 0:00:03]} 6. bxc3 {[%emt 0:00:08]} c5 {[%emt 0:00:02]} 7. Qg4 {[%emt 0:00:18]} Qc7 {[%emt 0:04:40]} 8. Qxg7 {[%emt 0:00:31]} Rg8 {[%emt 0:00:03]} 9. Qxh7 {[%emt 0:00:20]} cxd4 {[%emt 0:00:17]} 10. Ne2 {[%emt 0:00:29]} Nbc6 {[%emt 0:01:11]} 11. f4 {[%emt 0:01:01]} Bd7 {[%emt 0:02:48]} 12. Qd3 {[%emt 0:03:06]} dxc3 {[%emt 0:01:10]} 13. Qxc3 {[%emt 0:09:30]} Nf5 {[%emt 0:07:51]} 14. Rb1 {[%emt 0:11:17]} O-O-O {[%emt 0:05:44]} 15. Rg1 {[%emt 0:03:12]} d4 {[%emt 0:08:50]} 16. Qd3 {[%emt 0:04:46]} Be8 {[%emt 0:01:01]} 17. g4 {[%emt 0:32:25]} Nh4 {[%emt 0:10:17]} 18. Rg3 {[%emt 0:04:59]} f6 {[%emt 0:07:12]} 19. exf6 {[%emt 0:04:43]} Bg6 {[%emt 0:03:26]} 20. Qc4 {[%emt 0:01:57]} Bf7 {[%emt 0:06:39]} 21. g5 {[%emt 0:03:12]} Rge8 {[%emt 0:04:58]} 22. Bh3 {[%emt 0:03:21]} Nf5 {[%emt 0:02:44]} 23. g6 {[%emt 0:02:09]} Bxg6 {[%emt 0:02:57]} 24. Rxg6 {[%emt 0:00:50]} Qh7 {[%emt 0:00:03]} 25. Bxf5 {[%emt 0:06:12]} exf5 {[%emt 0:00:04]} 26. Rg7 {[%emt 0:00:26]} Qh4+ {[%emt 0:00:58]} 27. Kd1 {[%emt 0:00:39]} d3 {[%emt 0:00:25]} 28. cxd3 {[%emt 0:01:25]} Qh3 {[%emt 0:08:01]} 29. Re7 {[%emt 0:02:12]} Qf1+ {[%emt 0:00:42]} 30. Kd2 {[%emt 0:00:35]} Rxd3+ {[%emt 0:00:48]} 31. Qxd3 {[%emt 0:00:23]} Rd8 {[%emt 0:00:03]} 32. Re8 {[%emt 0:01:45]} Rxe8 {[%emt 0:00:10]} 33. f7 {[%emt 0:00:34]} 1-0

[Event "Baltic Zonal 2018"]
[Site "Tallinn"]
[Date "2018.05.18"]
[Round "7"]
[White "Vorobjov, Pavel"]
[Black "Berzina, Ilze"]
[Result "1/2-1/2"]
[ECO "D10"]
[WhiteElo "2233"]
[BlackElo "2176"]
[Annotator "NA"]
[PlyCount "118"]
[EventDate "2018.??.??"]
[EventType "swiss"]
[EventCountry "EST"]
[SourceTitle "playchess.com"]
[Source "ChessBase"]
[SourceQuality "1"]
[TimeControl "5400+30"]

1. d4 {[%emt 0:00:00]} d5 {[%emt 0:00:08]} 2. c4 {[%emt 0:00:00]} c6 {[%emt 0:00:10]} 3. Nc3 {[%emt 0:00:04]} dxc4 {[%emt 0:00:22]} 4. a4 {[%emt 0:00:16]} e5 {[%emt 0:00:30]} 5. e3 {[%emt 0:01:20]} exd4 {[%emt 0:01:33]} 6. exd4 {[%emt 0:00:06]} Be6 {[%emt 0:01:25]} 7. Nf3 {[%emt 0:01:40]} Bb4 {[%emt 0:04:33]} 8. Be2 {[%emt 0:01:14]} Nf6 {[%emt 0:02:13]} 9. O-O {[%emt 0:00:26]} O-O {[%emt 0:00:24]} 10. Bg5 {[%emt 0:05:17]} Nbd7 {[%emt 0:02:03]} 11. Qc2 {[%emt 0:02:11]} Be7 {[%emt 0:10:40]} 12. Nd2 {[%emt 0:04:14]} h6 {[%emt 0:12:04]} 13. Be3 {[%emt 0:03:58]} Nb6 {[%emt 0:05:40]} 14. a5 {[%emt 0:02:47]} Nbd5 {[%emt 0:00:10]} 15. Nxc4 {[%emt 0:01:27]} Nxe3 {[%emt 0:02:58]} 16. fxe3 {[%emt 0:03:08]} Qc7 {[%emt 0:03:33]} 17. Ne4 {[%emt 0:10:23]} Nd5 {[%emt 0:04:15]} 18. Nc5 {[%emt 0:03:06]} Bxc5 {[%emt 0:03:34]} 19. dxc5 {[%emt 0:00:11]} Qe7 {[%emt 0:00:11]} 20. a6 {[%emt 0:02:40]} bxa6 {[%emt 0:11:07]} 21. Ra5 {[%emt 0:01:18]} Rab8 {[%emt 0:00:26]} 22. Qe4 {[%emt 0:06:41]} Rb3 {[%emt 0:05:42]} 23. Qe5 {[%emt 0:07:28]} Rd8 {[%emt 0:05:42]} 24. e4 {[%emt 0:07:54]} Ne3 {[%emt 0:00:29]} 25. Nxe3 {[%emt 0:00:49]} Rxe3 {[%emt 0:00:05]} 26. Bxa6 {[%emt 0:05:07]} Qh4 {[%emt 0:04:32]} 27. Qf4 {[%emt 0:05:57]} Qxf4 {[%emt 0:01:51]} 28. Rxf4 {[%emt 0:00:01]} Rd2 {[%emt 0:00:18]} 29. b4 {[%emt 0:03:57]} Rb3 {[%emt 0:02:28]} 30. Bf1 {[%emt 0:05:41]} Rxb4 {[%emt 0:01:54]} 31. Rxa7 {[%emt 0:00:12]} g5 {[%emt 0:01:28]} 32. Rf2 {[%emt 0:00:52]} Rd1 {[%emt 0:00:13]} 33. Rc7 {[%emt 0:03:39]} Rxe4 {[%emt 0:03:13]} 34. Rxc6 {[%emt 0:00:15]} Rc1 {[%emt 0:02:07]} 35. h3 {[%emt 0:01:32]} Ree1 {[%emt 0:00:46]} 36. Rd6 {[%emt 0:02:20]} Rxc5 {[%emt 0:00:19]} 37. Kh2 {[%emt 0:00:33]} h5 {[%emt 0:00:36]} 38. Bd3 {[%emt 0:00:43]} Rcc1 {[%emt 0:01:12]} 39. Kg3 {[%emt 0:00:49]} h4+ {[%emt 0:01:18]} 40. Kf3 {[%emt 0:00:03]} Rc3 {[%emt 0:00:58]} 41. Rc2 {[%emt 0:00:32]} Rxc2 {[%emt 0:00:45]} 42. Bxc2 {[%emt 0:00:03]} Kg7 {[%emt 0:00:28]} 43. Kf2 {[%emt 0:01:54]} Rc1 {[%emt 0:00:08]} 44. Be4 {[%emt 0:00:16]} Kf6 {[%emt 0:00:13]} 45. Bf3 {[%emt 0:01:32]} Ke5 {[%emt 0:00:10]} 46. Rd2 {[%emt 0:00:26]} f5 {[%emt 0:00:45]} 47. Re2+ {[%emt 0:00:19]} Kf6 {[%emt 0:00:04]} 48. Re1 {[%emt 0:01:18]} Rxe1 {[%emt 0:01:14]} 49. Kxe1 {[%emt 0:00:01]} Ke5 {[%emt 0:00:07]} 50. Kf2 {[%emt 0:00:27]} Kf4 {[%emt 0:00:16]} 51. Bc6 {[%emt 0:00:55]} Bc4 {[%emt 0:00:08]} 52. Bb7 {[%emt 0:00:24]} Bd3 {[%emt 0:00:06]} 53. Bc6 {[%emt 0:00:11]} Be4 {[%emt 0:00:07]} 54. Bd7 {[%emt 0:00:22]} g4 {[%emt 0:00:27]} 55. hxg4 {[%emt 0:00:49]} fxg4 {[%emt 0:00:06]} 56. Be6 {[%emt 0:00:49]} Bf5 {[%emt 0:02:02]} 57. Bd5 {[%emt 0:00:11]} g3+ {[%emt 0:00:21]} 58. Kg1 {[%emt 0:00:25]} Be4 {[%emt 0:01:08]} 59. Be6 {[%emt 0:00:09]} Bd3 {[%emt 0:02:14]} 1/2-1/2